[Event "*** Titled Tuesday Blitz"]
[Site "Chess.com"]
[Date "2020.10.20"]
[Round "4"]
[White "MidnightFox"]
[Black "Playgood28"]
[Result "1-0"]
[WhiteElo "2439"]
[BlackElo "2293"]
[TimeControl "180+1"]
[EndTime "10:41:26 PDT"]
[Termination "MidnightFox won on time"]

1. Nf3 {[%clk 0:03:00.9]} 1... f5 {[%clk 0:02:58.8]} 2. g3 {[%clk 0:02:56.8]}
2... d6 {[%clk 0:02:58.2]} 3. d4 {[%clk 0:02:55.8]} 3... g6 {[%clk 0:02:57]} 4.
Bg2 {[%clk 0:02:56.7]} 4... Nf6 {[%clk 0:02:56.8]} 5. O-O {[%clk 0:02:57.6]}
5... Bg7 {[%clk 0:02:56.8]} 6. c4 {[%clk 0:02:57.6]} 6... c6 {[%clk 0:02:56.7]}
7. Nc3 {[%clk 0:02:58]} 7... O-O {[%clk 0:02:56.4]} 8. b3 {[%clk 0:02:57.1]}
8... Qc7 {[%clk 0:02:54.9]} 9. d5 {[%clk 0:02:57.4]} 9... e5 {[%clk 0:02:53.7]}
10. dxe6 {[%clk 0:02:56.5]} 10... Bxe6 {[%clk 0:02:53]} 11. Bb2 {[%clk 0:02:56]}
11... Na6 {[%clk 0:02:51.6]} 12. Rc1 {[%clk 0:02:50.9]} 12... Rfe8 {[%clk
0:02:48.7]} 13. Qc2 {[%clk 0:02:47.1]} 13... d5 {[%clk 0:02:36.2]} 14. cxd5
{[%clk 0:02:43.5]} 14... Nxd5 {[%clk 0:02:34.4]} 15. Nxd5 {[%clk 0:02:40.5]}
15... Bxd5 {[%clk 0:02:33.4]} 16. Bxg7 {[%clk 0:02:39.4]} 16... Qxg7 {[%clk
0:02:32.7]} 17. Rfd1 {[%clk 0:02:32.5]} 17... Qe7 {[%clk 0:02:23]} 18. e3 {[%clk
0:02:29.8]} 18... Nb4 {[%clk 0:02:15.6]} 19. Qd2 {[%clk 0:02:28.7]} 19... Be4
{[%clk 0:02:11.8]} 20. Nd4 {[%clk 0:02:24.6]} 20... Bxg2 {[%clk 0:02:07.6]} 21.
Kxg2 {[%clk 0:02:25.5]} 21... Nd5 {[%clk 0:02:03.8]} 22. Nf3 {[%clk 0:02:15.4]}
22... Rad8 {[%clk 0:01:56.9]} 23. Qc2 {[%clk 0:02:04.5]} 23... a6 {[%clk
0:01:51.7]} 24. Rd4 {[%clk 0:02:04]} 24... Nf6 {[%clk 0:01:25.6]} 25. Rcd1
{[%clk 0:01:58.9]} 25... Rxd4 {[%clk 0:01:24.5]} 26. Rxd4 {[%clk 0:01:59.8]}
26... Rd8 {[%clk 0:01:23.2]} 27. Qd1 {[%clk 0:01:56.8]} 27... Rxd4 {[%clk
0:01:21.5]} 28. Qxd4 {[%clk 0:01:57.7]} 28... Nd5 {[%clk 0:01:19]} 29. h4 {[%clk
0:01:52.6]} 29... Qg7 {[%clk 0:01:10.2]} 30. Qc5 {[%clk 0:01:43]} 30... Qf8
{[%clk 0:01:07.2]} 31. Qa5 {[%clk 0:01:39.8]} 31... Qe7 {[%clk 0:01:05.6]} 32.
a3 {[%clk 0:01:35.3]} 32... Nf6 {[%clk 0:01:01.8]} 33. b4 {[%clk 0:01:32.8]}
33... Ne4 {[%clk 0:00:58]} 34. Qb6 {[%clk 0:01:25.5]} 34... Kf7 {[%clk
0:00:55.6]} 35. a4 {[%clk 0:01:21.7]} 35... Kg7 {[%clk 0:00:51.3]} 36. b5 {[%clk
0:01:20]} 36... axb5 {[%clk 0:00:50.8]} 37. axb5 {[%clk 0:01:20.9]} 37... cxb5
{[%clk 0:00:50.5]} 38. Qxb5 {[%clk 0:01:20.2]} 38... Kf7 {[%clk 0:00:48.8]} 39.
Ne5+ {[%clk 0:01:18.2]} 39... Kg7 {[%clk 0:00:41.4]} 40. f4 {[%clk 0:01:17.3]}
40... Qc7 {[%clk 0:00:35.7]} 41. Qb3 {[%clk 0:01:11.4]} 41... b5 {[%clk
0:00:26.6]} 42. Kh3 {[%clk 0:01:02]} 42... Nf2+ {[%clk 0:00:25.3]} 43. Kg2
{[%clk 0:01:00.5]} 43... Ne4 {[%clk 0:00:25.6]} 44. h5 {[%clk 0:00:58.2]} 44...
b4 {[%clk 0:00:21.7]} 45. h6+ {[%clk 0:00:58.1]} 45... Kxh6 {[%clk 0:00:20.5]}
46. Qg8 {[%clk 0:00:58.6]} 46... Qc2+ {[%clk 0:00:17.9]} 47. Kh3 {[%clk
0:00:57.8]} 47... Nd6 {[%clk 0:00:11.2]} 48. Qf8+ {[%clk 0:00:50.4]} 48... Kh5
{[%clk 0:00:10.5]} 49. Qg7 {[%clk 0:00:42.6]} 1-0

[Event "*** Titled Tuesday Blitz"]
[Site "Chess.com"]
[Date "2020.10.20"]
[Round "4"]
[White "QuintilianoR"]
[Black "Das_Virus_2020"]
[Result "1-0"]
[WhiteElo "2651"]
[BlackElo "2423"]
[TimeControl "180+1"]
[EndTime "10:41:27 PDT"]
[Termination "QuintilianoR won by resignation"]

1. e4 {[%clk 0:03:00.9]} 1... e6 {[%clk 0:02:59.5]} 2. d4 {[%clk 0:03:00]} 2...
d5 {[%clk 0:02:59.3]} 3. Nd2 {[%clk 0:03:00.1]} 3... Nf6 {[%clk 0:02:58.8]} 4.
e5 {[%clk 0:03:00.2]} 4... Nfd7 {[%clk 0:02:59]} 5. Bd3 {[%clk 0:03:00.6]} 5...
c5 {[%clk 0:02:59.3]} 6. c3 {[%clk 0:03:01]} 6... Nc6 {[%clk 0:02:59.8]} 7. Ne2
{[%clk 0:03:01.4]} 7... cxd4 {[%clk 0:03:00.1]} 8. cxd4 {[%clk 0:03:02.1]} 8...
f6 {[%clk 0:03:00.5]} 9. exf6 {[%clk 0:03:02.4]} 9... Nxf6 {[%clk 0:03:01.4]}
10. O-O {[%clk 0:03:01.6]} 10... Bd6 {[%clk 0:03:01.9]} 11. Nf3 {[%clk
0:03:01.2]} 11... O-O {[%clk 0:03:01.9]} 12. Bf4 {[%clk 0:03:01]} 12... Bxf4
{[%clk 0:03:02.4]} 13. Nxf4 {[%clk 0:03:01.3]} 13... Ne4 {[%clk 0:03:02.9]} 14.
Qc1 {[%clk 0:02:22.8]} 14... Qf6 {[%clk 0:03:01.8]} 15. Ne2 {[%clk 0:01:14.2]}
15... Bd7 {[%clk 0:02:56.2]} 16. Qe3 {[%clk 0:01:12.3]} 16... Nd6 {[%clk
0:02:55.9]} 17. Ne5 {[%clk 0:01:07.9]} 17... Be8 {[%clk 0:02:56]} 18. Ng3 {[%clk
0:01:02.9]} 18... Nb4 {[%clk 0:02:53.4]} 19. Rfe1 {[%clk 0:00:52.6]} 19... Nxd3
{[%clk 0:02:48.9]} 20. Nxd3 {[%clk 0:00:53.5]} 20... Bf7 {[%clk 0:02:40.5]} 21.
Qf4 {[%clk 0:00:39]} 21... Nb5 {[%clk 0:02:19.5]} 22. Ne2 {[%clk 0:00:25.6]}
22... Rac8 {[%clk 0:01:49.6]} 23. Rac1 {[%clk 0:00:21.1]} 23... Bg6 {[%clk
0:01:38.8]} 24. Qxf6 {[%clk 0:00:19.5]} 24... gxf6 {[%clk 0:01:37.2]} 25. Nc5
{[%clk 0:00:19.8]} 25... e5 {[%clk 0:01:17.1]} 26. dxe5 {[%clk 0:00:19.1]} 26...
fxe5 {[%clk 0:01:16.7]} 27. Nd7 {[%clk 0:00:19.7]} 27... Rxc1 {[%clk 0:01:03.9]}
28. Rxc1 {[%clk 0:00:20.6]} 28... Re8 {[%clk 0:01:01.6]} 29. Nf6+ {[%clk
0:00:20]} 29... Kg7 {[%clk 0:01:00.1]} 30. Nxe8+ {[%clk 0:00:20.9]} 30... Bxe8
{[%clk 0:01:00.6]} 31. a4 {[%clk 0:00:21.1]} 31... Nd6 {[%clk 0:00:59]} 32. Rc7+
{[%clk 0:00:21.4]} 32... Kg6 {[%clk 0:00:57.6]} 33. Nc3 {[%clk 0:00:21.4]} 33...
d4 {[%clk 0:00:56.5]} 34. Nb5 {[%clk 0:00:20.5]} 34... Nxb5 {[%clk 0:00:30.8]}
35. axb5 {[%clk 0:00:21.4]} 35... Bxb5 {[%clk 0:00:30.7]} 36. Rxb7 {[%clk
0:00:21.6]} 36... a6 {[%clk 0:00:31.3]} 37. f3 {[%clk 0:00:17.2]} 37... h5
{[%clk 0:00:27.1]} 38. Kf2 {[%clk 0:00:17.1]} 38... Kf5 {[%clk 0:00:26.8]} 39.
Rb6 {[%clk 0:00:16.7]} 39... e4 {[%clk 0:00:25.1]} 40. fxe4+ {[%clk 0:00:16.5]}
40... Kxe4 {[%clk 0:00:26]} 41. Rh6 {[%clk 0:00:16.4]} 41... d3 {[%clk
0:00:26.2]} 42. Ke1 {[%clk 0:00:16.2]} 42... Ke3 {[%clk 0:00:22.1]} 43. Re6+
{[%clk 0:00:16.5]} 43... Kd4 {[%clk 0:00:22.2]} 44. Kd2 {[%clk 0:00:17.4]} 44...
Bc4 {[%clk 0:00:22.1]} 45. Rh6 {[%clk 0:00:18.3]} 45... Bf7 {[%clk 0:00:21.9]}
46. Rxa6 {[%clk 0:00:17.8]} 46... Bd5 {[%clk 0:00:21.2]} 47. Ra5 {[%clk
0:00:18]} 1-0

[Event "*** Titled Tuesday Blitz"]
[Site "Chess.com"]
[Date "2020.10.20"]
[Round "4"]
[White "GelmanAlexander"]
[Black "Chesstrainer1"]
[Result "1-0"]
[WhiteElo "2598"]
[BlackElo "2385"]
[TimeControl "180+1"]
[EndTime "10:41:30 PDT"]
[Termination "GelmanAlexander won by resignation"]

1. d4 {[%clk 0:03:00.9]} 1... Nf6 {[%clk 0:02:59.5]} 2. Nc3 {[%clk 0:03:00.7]}
2... g6 {[%clk 0:03:00]} 3. e4 {[%clk 0:03:00.7]} 3... d6 {[%clk 0:03:00.4]} 4.
f4 {[%clk 0:03:00.8]} 4... Bg7 {[%clk 0:02:59.3]} 5. Nf3 {[%clk 0:03:01.3]} 5...
O-O {[%clk 0:02:59.8]} 6. e5 {[%clk 0:03:01.5]} 6... Nfd7 {[%clk 0:02:47.2]} 7.
h4 {[%clk 0:03:01.1]} 7... c5 {[%clk 0:02:47.9]} 8. e6 {[%clk 0:03:01.5]} 8...
cxd4 {[%clk 0:02:48.8]} 9. exd7 {[%clk 0:02:45.8]} 9... dxc3 {[%clk 0:02:43.3]}
10. dxc8=Q {[%clk 0:02:41.5]} 10... cxb2 {[%clk 0:02:26]} 11. Qxd8 {[%clk
0:01:46.9]} 11... bxa1=Q {[%clk 0:02:24.9]} 12. Qc7 {[%clk 0:01:26.1]} 12... Nc6
{[%clk 0:02:14.9]} 13. Bd3 {[%clk 0:01:19.1]} 13... Rfc8 {[%clk 0:02:07.7]} 14.
Qxb7 {[%clk 0:01:17.3]} 14... Rab8 {[%clk 0:02:07]} 15. Qa6 {[%clk 0:01:17.1]}
15... Nb4 {[%clk 0:02:03.8]} 16. Qa4 {[%clk 0:01:09.3]} 16... Bc3+ {[%clk
0:01:23.4]} 17. Kf2 {[%clk 0:01:03.2]} 17... Nxa2 {[%clk 0:00:50.9]} 18. Be3
{[%clk 0:00:56.4]} 18... Qb2 {[%clk 0:00:50]} 19. h5 {[%clk 0:00:45.6]} 19... a5
{[%clk 0:00:41.3]} 20. hxg6 {[%clk 0:00:43]} 20... hxg6 {[%clk 0:00:42.2]} 21.
Qd7 {[%clk 0:00:29.1]} 21... Bf6 {[%clk 0:00:36.7]} 22. f5 {[%clk 0:00:21.2]}
22... Rd8 {[%clk 0:00:27.2]} 23. Qa7 {[%clk 0:00:20.5]} 23... Nb4 {[%clk
0:00:23]} 24. fxg6 {[%clk 0:00:19.8]} 24... Rdc8 {[%clk 0:00:20.1]} 25. gxf7+
{[%clk 0:00:19.6]} 25... Kxf7 {[%clk 0:00:19.6]} 26. Ne1 {[%clk 0:00:17.2]}
26... Nxd3+ {[%clk 0:00:18.3]} 27. Qxd3 {[%clk 0:00:16.5]} 27... Rh8 {[%clk
0:00:16.3]} 28. Rh7+ {[%clk 0:00:15.8]} 28... Rxh7 {[%clk 0:00:16]} 29. Qxh7+
{[%clk 0:00:15.7]} 29... Ke6 {[%clk 0:00:16.9]} 30. Qxa5 {[%clk 0:00:15.1]}
30... Rb5 {[%clk 0:00:15.9]} 31. Qd2 {[%clk 0:00:13.9]} 31... Rf5+ {[%clk
0:00:15]} 32. Nf3 {[%clk 0:00:14.3]} 32... Be5 {[%clk 0:00:09.6]} 33. Qg6+
{[%clk 0:00:12.6]} 33... Rf6 {[%clk 0:00:10]} 34. Qg4+ {[%clk 0:00:12.6]} 34...
Kf7 {[%clk 0:00:09.1]} 35. Qc4+ {[%clk 0:00:11.6]} 35... Kg7 {[%clk 0:00:08.1]}
36. Qdd5 {[%clk 0:00:11.8]} 36... Rf8 {[%clk 0:00:05.6]} 37. Qg4+ {[%clk
0:00:11.5]} 1-0

[Event "*** Titled Tuesday Blitz"]
[Site "Chess.com"]
[Date "2020.10.20"]
[Round "4"]
[White "bazar-wokzal"]
[Black "Radzio1987"]
[Result "0-1"]
[WhiteElo "2524"]
[BlackElo "2819"]
[TimeControl "180+1"]
[EndTime "10:41:31 PDT"]
[Termination "Radzio1987 won by resignation"]

1. e4 {[%clk 0:03:00.9]} 1... c6 {[%clk 0:02:59.6]} 2. d4 {[%clk 0:03:00.7]}
2... d5 {[%clk 0:03:00.5]} 3. e5 {[%clk 0:03:01.2]} 3... Bf5 {[%clk 0:03:00]} 4.
Nc3 {[%clk 0:03:01.5]} 4... Qb6 {[%clk 0:02:58.4]} 5. g4 {[%clk 0:03:00.9]} 5...
Bd7 {[%clk 0:02:58.2]} 6. f4 {[%clk 0:03:01]} 6... e6 {[%clk 0:02:56.5]} 7. Nf3
{[%clk 0:03:00.4]} 7... c5 {[%clk 0:02:56.5]} 8. Ne2 {[%clk 0:02:56.6]} 8... h5
{[%clk 0:02:53.2]} 9. gxh5 {[%clk 0:02:56]} 9... Nh6 {[%clk 0:02:52.2]} 10. c3
{[%clk 0:02:55.6]} 10... Nf5 {[%clk 0:02:51.8]} 11. Ng3 {[%clk 0:02:49]} 11...
Nc6 {[%clk 0:02:45]} 12. Nxf5 {[%clk 0:02:45.8]} 12... exf5 {[%clk 0:02:45.9]}
13. dxc5 {[%clk 0:02:45.1]} 13... Bxc5 {[%clk 0:02:44.9]} 14. Qe2 {[%clk
0:02:41.1]} 14... Rxh5 {[%clk 0:02:37.9]} 15. b4 {[%clk 0:02:36.9]} 15... Be7
{[%clk 0:02:27.3]} 16. Be3 {[%clk 0:02:36.5]} 16... Qc7 {[%clk 0:02:27.5]} 17.
Rd1 {[%clk 0:02:31.9]} 17... Be6 {[%clk 0:02:25.2]} 18. Bg2 {[%clk 0:02:10]}
18... g6 {[%clk 0:02:23.6]} 19. a4 {[%clk 0:01:45.6]} 19... Kf8 {[%clk
0:02:21.1]} 20. a5 {[%clk 0:01:45.3]} 20... Kg7 {[%clk 0:02:06.4]} 21. a6 {[%clk
0:01:42.7]} 21... bxa6 {[%clk 0:01:41.2]} 22. Qxa6 {[%clk 0:01:37.7]} 22... Nb8
{[%clk 0:01:41.1]} 23. Qd3 {[%clk 0:01:34.1]} 23... a5 {[%clk 0:01:40.8]} 24. b5
{[%clk 0:01:29.6]} 24... Nd7 {[%clk 0:01:40.7]} 25. O-O {[%clk 0:01:15.1]} 25...
Nc5 {[%clk 0:01:40.4]} 26. Bxc5 {[%clk 0:01:07.6]} 26... Bxc5+ {[%clk
0:01:41.3]} 27. Kh1 {[%clk 0:01:06.9]} 27... a4 {[%clk 0:01:37.2]} 28. Ng5
{[%clk 0:00:57]} 28... Rah8 {[%clk 0:01:29.6]} 29. h3 {[%clk 0:00:56.7]} 29...
Be7 {[%clk 0:01:29.5]} 30. Nf3 {[%clk 0:00:45]} 30... a3 {[%clk 0:01:29.7]} 31.
Ra1 {[%clk 0:00:41.8]} 31... Qc5 {[%clk 0:01:23.7]} 32. Nd4 {[%clk 0:00:38.3]}
32... Rh4 {[%clk 0:01:23.9]} 33. Kh2 {[%clk 0:00:30.2]} 33... Rc8 {[%clk
0:01:17.3]} 34. Rf3 {[%clk 0:00:27.9]} 34... Ra8 {[%clk 0:01:06]} 35. Ra2 {[%clk
0:00:26.9]} 35... Ra4 {[%clk 0:01:05.4]} 36. Bf1 {[%clk 0:00:24.3]} 36... Bd8
{[%clk 0:01:03.6]} 37. Qe3 {[%clk 0:00:21.2]} 37... Bb6 {[%clk 0:00:59.2]} 38.
Nxe6+ {[%clk 0:00:15.8]} 38... fxe6 {[%clk 0:01:00.1]} 39. Qxc5 {[%clk
0:00:16.2]} 39... Bxc5 {[%clk 0:01:01]} 40. Kg3 {[%clk 0:00:16.8]} 40... Rh8
{[%clk 0:00:59.1]} 41. c4 {[%clk 0:00:17]} 41... dxc4 {[%clk 0:00:53.5]} 42. Rc3
{[%clk 0:00:17.1]} 42... Rd8 {[%clk 0:00:47]} 43. Rxc4 {[%clk 0:00:16.6]} 43...
Rxc4 {[%clk 0:00:46.4]} 44. Bxc4 {[%clk 0:00:17.2]} 44... Kf7 {[%clk 0:00:46.9]}
45. b6 {[%clk 0:00:17.4]} 45... Rb8 {[%clk 0:00:46.8]} 46. Rd2 {[%clk
0:00:14.3]} 46... Rxb6 {[%clk 0:00:44.9]} 47. Rd7+ {[%clk 0:00:14.4]} 47... Be7
{[%clk 0:00:41.8]} 48. Ra7 {[%clk 0:00:14.1]} 48... Rc6 {[%clk 0:00:42]} 49. Ba2
{[%clk 0:00:13.3]} 49... Rc2 {[%clk 0:00:41.9]} 50. Bb1 {[%clk 0:00:06.8]} 50...
Rb2 {[%clk 0:00:42.1]} 51. Bd3 {[%clk 0:00:07.2]} 51... Rb3 {[%clk 0:00:42.1]}
0-1

[Event "*** Titled Tuesday Blitz"]
[Site "Chess.com"]
[Date "2020.10.20"]
[Round "4"]
[White "Unknown_IM"]
[Black "chessmadara"]
[Result "1/2-1/2"]
[WhiteElo "2373"]
[BlackElo "2147"]
[TimeControl "180+1"]
[EndTime "10:41:31 PDT"]
[Termination "Game drawn - insufficient material"]

1. e4 {[%clk 0:02:58]} 1... c5 {[%clk 0:02:58.4]} 2. Nc3 {[%clk 0:02:56.3]} 2...
d6 {[%clk 0:02:57]} 3. f4 {[%clk 0:02:55]} 3... Nc6 {[%clk 0:02:54.3]} 4. Nf3
{[%clk 0:02:53.9]} 4... g6 {[%clk 0:02:54.3]} 5. Bc4 {[%clk 0:02:51.4]} 5... Bg7
{[%clk 0:02:54]} 6. O-O {[%clk 0:02:49.6]} 6... e6 {[%clk 0:02:53.7]} 7. d4
{[%clk 0:02:46.3]} 7... cxd4 {[%clk 0:02:52.7]} 8. Nb5 {[%clk 0:02:44.6]} 8...
Nge7 {[%clk 0:02:48.2]} 9. Bb3 {[%clk 0:02:41.2]} 9... Na5 {[%clk 0:02:41.6]}
10. Nbxd4 {[%clk 0:02:25.8]} 10... Nxb3 {[%clk 0:02:41.2]} 11. axb3 {[%clk
0:02:22.3]} 11... O-O {[%clk 0:02:41]} 12. Be3 {[%clk 0:02:18.8]} 12... Bd7
{[%clk 0:02:34.2]} 13. c4 {[%clk 0:02:17.9]} 13... Nc6 {[%clk 0:02:25.4]} 14.
Nxc6 {[%clk 0:01:28.3]} 14... Bxc6 {[%clk 0:02:23.4]} 15. Bd4 {[%clk 0:01:26.6]}
15... e5 {[%clk 0:02:08.2]} 16. fxe5 {[%clk 0:01:19.1]} 16... dxe5 {[%clk
0:02:09.1]} 17. Bxe5 {[%clk 0:01:10.1]} 17... Bxe4 {[%clk 0:02:02]} 18. Bxg7
{[%clk 0:01:07.2]} 18... Kxg7 {[%clk 0:02:02.9]} 19. Qxd8 {[%clk 0:00:57.4]}
19... Rfxd8 {[%clk 0:02:01.5]} 20. Ng5 {[%clk 0:00:56.9]} 20... Bf5 {[%clk
0:01:57.8]} 21. g4 {[%clk 0:00:56.7]} 21... Bxg4 {[%clk 0:01:57.4]} 22. Rxf7+
{[%clk 0:00:55.4]} 22... Kh6 {[%clk 0:01:54.5]} 23. h4 {[%clk 0:00:54.9]} 23...
Rd7 {[%clk 0:01:47.6]} 24. Raf1 {[%clk 0:00:51]} 24... Rad8 {[%clk 0:01:42.9]}
25. Kg2 {[%clk 0:00:36.8]} 25... Rxf7 {[%clk 0:01:12.9]} 26. Rxf7 {[%clk
0:00:36]} 26... Rd7 {[%clk 0:01:13]} 27. Kg3 {[%clk 0:00:24.8]} 27... Bf5 {[%clk
0:01:12.4]} 28. Rxd7 {[%clk 0:00:16.2]} 28... Bxd7 {[%clk 0:01:13.3]} 29. Nf7+
{[%clk 0:00:16.7]} 29... Kg7 {[%clk 0:01:12]} 30. Nd6 {[%clk 0:00:16.6]} 30...
b6 {[%clk 0:01:05.8]} 31. b4 {[%clk 0:00:15.8]} 31... Kf6 {[%clk 0:01:03.3]} 32.
Kf4 {[%clk 0:00:15.9]} 32... h6 {[%clk 0:01:02.4]} 33. Ne4+ {[%clk 0:00:15.1]}
33... Ke6 {[%clk 0:00:56.5]} 34. c5 {[%clk 0:00:15.2]} 34... Bc6 {[%clk
0:00:52.1]} 35. Nc3 {[%clk 0:00:10.4]} 35... bxc5 {[%clk 0:00:48]} 36. bxc5
{[%clk 0:00:11.3]} 36... Kf6 {[%clk 0:00:41.5]} 37. b4 {[%clk 0:00:10.7]} 37...
a6 {[%clk 0:00:40.6]} 38. Ne2 {[%clk 0:00:10]} 38... g5+ {[%clk 0:00:39.8]} 39.
hxg5+ {[%clk 0:00:04.6]} 39... hxg5+ {[%clk 0:00:40.7]} 40. Ke3 {[%clk 0:00:05]}
40... Ke5 {[%clk 0:00:37.9]} 41. Nd4 {[%clk 0:00:05.2]} 41... Kd5 {[%clk
0:00:33.3]} 42. Nxc6 {[%clk 0:00:02.7]} 42... Kxc6 {[%clk 0:00:33.2]} 43. Ke4
{[%clk 0:00:03.1]} 43... a5 {[%clk 0:00:31.8]} 44. bxa5 {[%clk 0:00:02.9]} 44...
Kxc5 {[%clk 0:00:32.1]} 45. Kf5 {[%clk 0:00:03.2]} 45... Kb5 {[%clk 0:00:32.4]}
46. Kxg5 {[%clk 0:00:04.1]} 46... Kxa5 {[%clk 0:00:32.6]} 1/2-1/2

[Event "*** Titled Tuesday Blitz"]
[Site "Chess.com"]
[Date "2020.10.20"]
[Round "4"]
[White "AlphaHero0"]
[Black "ehrenfeld"]
[Result "0-1"]
[WhiteElo "1978"]
[BlackElo "2491"]
[TimeControl "180+1"]
[EndTime "10:41:33 PDT"]
[Termination "ehrenfeld won on time"]

1. e4 {[%clk 0:03:00.9]} 1... d6 {[%clk 0:02:59.1]} 2. Nf3 {[%clk 0:03:00.6]}
2... Nf6 {[%clk 0:02:58.1]} 3. c3 {[%clk 0:03:01]} 3... g6 {[%clk 0:02:55.1]} 4.
h3 {[%clk 0:02:58.5]} 4... Bg7 {[%clk 0:02:54.5]} 5. Bd3 {[%clk 0:02:58.4]} 5...
O-O {[%clk 0:02:53.5]} 6. Bc2 {[%clk 0:02:58.5]} 6... e5 {[%clk 0:02:49.9]} 7.
d4 {[%clk 0:02:56.4]} 7... Nc6 {[%clk 0:02:44.8]} 8. O-O {[%clk 0:02:50.6]} 8...
Bd7 {[%clk 0:02:37.6]} 9. a3 {[%clk 0:02:46.3]} 9... a5 {[%clk 0:02:30.9]} 10.
Re1 {[%clk 0:02:46.5]} 10... h6 {[%clk 0:02:30.2]} 11. Nbd2 {[%clk 0:02:42.8]}
11... Nh5 {[%clk 0:02:28.3]} 12. Nf1 {[%clk 0:02:42.9]} 12... Nf4 {[%clk
0:01:55.5]} 13. Bxf4 {[%clk 0:02:35.2]} 13... exf4 {[%clk 0:01:55.4]} 14. N1d2
{[%clk 0:02:22.3]} 14... g5 {[%clk 0:01:54.8]} 15. Nh2 {[%clk 0:02:22.3]} 15...
Ne7 {[%clk 0:01:46]} 16. Qh5 {[%clk 0:02:20.1]} 16... f6 {[%clk 0:01:05.1]} 17.
Ng4 {[%clk 0:01:03]} 17... Kh7 {[%clk 0:01:03.4]} 18. Nxf6+ {[%clk 0:00:47.7]}
18... Rxf6 {[%clk 0:00:28.3]} 19. e5+ {[%clk 0:00:47.9]} 19... Rf5 {[%clk
0:00:28.4]} 20. e6 {[%clk 0:00:42.3]} 20... Be8 {[%clk 0:00:24.9]} 21. Bxf5+
{[%clk 0:00:22.9]} 21... Nxf5 {[%clk 0:00:24.2]} 22. Qe2 {[%clk 0:00:23.8]}
22... Ne7 {[%clk 0:00:19.9]} 23. d5 {[%clk 0:00:20]} 23... Bg6 {[%clk
0:00:19.7]} 24. c4 {[%clk 0:00:18.6]} 24... Qf8 {[%clk 0:00:17.4]} 25. Nf3
{[%clk 0:00:15.8]} 25... Qf6 {[%clk 0:00:16.3]} 26. Rab1 {[%clk 0:00:14.5]}
26... Bxb1 {[%clk 0:00:14.9]} 27. Rxb1 {[%clk 0:00:15.4]} 27... Qf5 {[%clk
0:00:14.4]} 28. Rc1 {[%clk 0:00:13.3]} 28... a4 {[%clk 0:00:14.3]} 29. c5 {[%clk
0:00:11.5]} 29... Nxd5 {[%clk 0:00:12]} 30. cxd6 {[%clk 0:00:09.5]} 30... cxd6
{[%clk 0:00:12]} 31. Qd2 {[%clk 0:00:08.3]} 31... Qxe6 {[%clk 0:00:09]} 32. Rd1
{[%clk 0:00:06.7]} 32... Nf6 {[%clk 0:00:08.4]} 33. Qxd6 {[%clk 0:00:06]} 33...
Qxd6 {[%clk 0:00:08.4]} 34. Rxd6 {[%clk 0:00:06.5]} 34... Rc8 {[%clk 0:00:08.4]}
35. Ne5 {[%clk 0:00:04.7]} 35... Rc1+ {[%clk 0:00:06.2]} 36. Kh2 {[%clk
0:00:04.7]} 36... Rc2 {[%clk 0:00:06.3]} 37. Rb6 {[%clk 0:00:03.3]} 37... Rc7
{[%clk 0:00:04.4]} 38. Nf3 {[%clk 0:00:01.7]} 38... Nd5 {[%clk 0:00:02.8]} 0-1

[Event "*** Titled Tuesday Blitz"]
[Site "Chess.com"]
[Date "2020.10.20"]
[Round "4"]
[White "German_Bazeev"]
[Black "GMBenjaminBok"]
[Result "1/2-1/2"]
[WhiteElo "2713"]
[BlackElo "2932"]
[TimeControl "180+1"]
[EndTime "10:41:36 PDT"]
[Termination "Game drawn by agreement"]

1. d4 {[%clk 0:02:59.4]} 1... Nf6 {[%clk 0:03:00.4]} 2. Nf3 {[%clk 0:02:58.9]}
2... d5 {[%clk 0:03:00.1]} 3. c4 {[%clk 0:02:58.8]} 3... e6 {[%clk 0:03:00.7]}
4. g3 {[%clk 0:02:58.6]} 4... dxc4 {[%clk 0:02:58.4]} 5. Bg2 {[%clk 0:02:58.8]}
5... c6 {[%clk 0:02:59.1]} 6. Ne5 {[%clk 0:02:56.9]} 6... Bb4+ {[%clk
0:02:58.2]} 7. Nc3 {[%clk 0:02:55.8]} 7... Nd5 {[%clk 0:02:56.9]} 8. Bd2 {[%clk
0:02:55.6]} 8... b5 {[%clk 0:02:54]} 9. a4 {[%clk 0:02:55.5]} 9... O-O {[%clk
0:02:50.3]} 10. O-O {[%clk 0:02:54.5]} 10... a6 {[%clk 0:02:22.4]} 11. Qc2
{[%clk 0:02:53.9]} 11... Bb7 {[%clk 0:02:15.2]} 12. e4 {[%clk 0:02:43.2]} 12...
Nxc3 {[%clk 0:02:10.5]} 13. bxc3 {[%clk 0:02:43]} 13... Be7 {[%clk 0:02:10.5]}
14. Rab1 {[%clk 0:02:42.5]} 14... Qc8 {[%clk 0:02:07.4]} 15. Qb2 {[%clk
0:02:36.8]} 15... Ra7 {[%clk 0:01:53.1]} 16. Be3 {[%clk 0:02:36.9]} 16... Nd7
{[%clk 0:01:51.2]} 17. f4 {[%clk 0:02:15.5]} 17... Nxe5 {[%clk 0:01:33.7]} 18.
dxe5 {[%clk 0:01:57.4]} 18... Ra8 {[%clk 0:01:33.2]} 19. f5 {[%clk 0:01:57.8]}
19... Bd8 {[%clk 0:01:17.7]} 20. f6 {[%clk 0:01:56.3]} 20... Bc7 {[%clk
0:01:05.8]} 21. fxg7 {[%clk 0:01:55.7]} 21... Kxg7 {[%clk 0:00:56.5]} 22. Bf4
{[%clk 0:01:32.4]} 22... Qb8 {[%clk 0:00:45.6]} 23. Qd2 {[%clk 0:01:30.7]} 23...
Bxe5 {[%clk 0:00:43.6]} 24. Bh6+ {[%clk 0:01:20.5]} 24... Kh8 {[%clk 0:00:43.2]}
25. Bxf8 {[%clk 0:01:13.3]} 25... Qxf8 {[%clk 0:00:43.6]} 26. Qd7 {[%clk
0:01:14]} 26... Bc8 {[%clk 0:00:33.5]} 27. Qxc6 {[%clk 0:01:13.5]} 27... Rb8
{[%clk 0:00:11.9]} 28. axb5 {[%clk 0:01:11.6]} 28... axb5 {[%clk 0:00:12.1]} 29.
Rxb5 {[%clk 0:01:09.2]} 29... Rxb5 {[%clk 0:00:11.7]} 30. Qxb5 {[%clk
0:01:10.1]} 30... Bxc3 {[%clk 0:00:09.5]} 31. Qxc4 {[%clk 0:01:10.1]} 31... Bg7
{[%clk 0:00:09.5]} 32. Qc7 {[%clk 0:01:05.3]} 32... Kg8 {[%clk 0:00:09.3]} 33.
Bf3 {[%clk 0:01:04.3]} 33... Ba6 {[%clk 0:00:08.8]} 34. Rd1 {[%clk 0:01:02.1]}
34... Bf6 {[%clk 0:00:07.3]} 35. Bh5 {[%clk 0:01:00.1]} 35... Qe7 {[%clk
0:00:06.3]} 36. Rd7 {[%clk 0:00:53.6]} 36... Qb4 {[%clk 0:00:03.2]} 37. Bxf7+
{[%clk 0:00:50.4]} 37... Kh8 {[%clk 0:00:02.7]} 38. Rd8+ {[%clk 0:00:23.1]}
38... Bxd8 {[%clk 0:00:02]} 39. Qxd8+ {[%clk 0:00:24]} 39... Kg7 {[%clk
0:00:02.7]} 40. Qg8+ {[%clk 0:00:24.2]} 40... Kf6 {[%clk 0:00:03.2]} 41. e5+
{[%clk 0:00:24.6]} 41... Kxe5 {[%clk 0:00:02.3]} 42. Qg5+ {[%clk 0:00:24.7]}
42... Kd6 {[%clk 0:00:02.5]} 43. Qf4+ {[%clk 0:00:25]} 43... Qxf4 {[%clk
0:00:02.1]} 44. gxf4 {[%clk 0:00:25.9]} 44... Ke7 {[%clk 0:00:02.8]} 45. Bh5
{[%clk 0:00:25.3]} 45... Kf6 {[%clk 0:00:03.3]} 46. Bg4 {[%clk 0:00:25.7]} 46...
Bc4 {[%clk 0:00:02.5]} 47. Kf2 {[%clk 0:00:25.4]} 47... e5 {[%clk 0:00:02.9]}
48. fxe5+ {[%clk 0:00:25.4]} 48... Kxe5 {[%clk 0:00:03.8]} 49. Bf3 {[%clk
0:00:25.4]} 49... Kf6 {[%clk 0:00:04.2]} 50. Kg3 {[%clk 0:00:25.7]} 50... h6
{[%clk 0:00:04.8]} 1/2-1/2